fUSD/lending_fUSD_20241123
["ID","MTS","AMOUNT","RATE_DAILY","PERIOD"]
[343139388,1732378274614,-1225.24,0.00055888,120]
[343139389,1732378274624,-763.95,0.00055888,21]
[343139390,1732378274634,-500.0,0.00055888,120]
[343139391,1732378274644,-1000.0,0.00055888,120]
[343139392,1732378274654,-1000.0,0.00055888,120]
[343139393,1732378274663,-500.0,0.00055888,120]
[343139394,1732378274673,-736.93,0.00055888,120]
[343139395,1732378274683,-1770.31,0.00055888,120]
[343139396,1732378274692,-500.0,0.00055888,120]
[343139397,1732378274702,-1572.97,0.00055888,120]
[343139398,1732378274713,-187.26222832,0.00055888,120]
[343139399,1732378274724,-1131.1,0.00055888,120]
[343139400,1732378274735,-500.0,0.00055888,120]
[343139401,1732378274745,-500.0,0.00055888,120]
[343139402,1732378274756,-802.56,0.00055888,120]
[343139403,1732378274766,-500.0,0.00055888,120]
[343139404,1732378274777,-500.0,0.00055888,120]
[343139405,1732378274787,-656.66,0.00055888,120]
[343139406,1732378274798,-1784.65,0.00055888,120]
[343139407,1732378274808,-580.05,0.00055888,120]
[343139408,1732378274819,-500.0,0.00055888,120]
[343139409,1732378274829,-500.0,0.00055888,120]
[343139410,1732378274839,-150.0,0.00055888,14]
[343139411,1732378274849,-1266.57,0.00055888,120]
[343139412,1732378274859,-760.74,0.00055888,120]
[343139413,1732378274869,-909.97,0.00055889,120]
[343139414,1732378274879,-909.97,0.00055889,120]
[343139415,1732378274889,-825.46,0.00055889,120]
[343139416,1732378274899,-825.46,0.00055889,120]
[343139417,1732378274909,-500.0,0.00055889,120]
[343139418,1732378274920,-500.0,0.00055889,120]
[343139419,1732378274930,-1466.06,0.00055889,120]
[343139420,1732378274942,-1466.06,0.00055889,120]
[343139421,1732378274952,-1008.87,0.00055889,120]
[343139422,1732378274961,-1008.87,0.00055889,120]
[343139423,1732378274974,-500.0,0.00055889,120]
[343139424,1732378274983,-500.0,0.00055889,120]
[343139425,1732378274994,-519.16,0.00055889,120]
[343139426,1732378275005,-519.16,0.00055889,120]
[343139427,1732378275015,-520.29,0.00055889,120]
[343139428,1732378275026,-520.29,0.00055889,120]
[343139429,1732378275036,-1352.09,0.00055889,120]
[343139430,1732378275046,-1352.09,0.00055889,120]
[343139431,1732378275057,-1465.94,0.00055889,120]
[343139432,1732378275067,-1465.94,0.00055889,120]
[343139433,1732378275077,-500.0,0.00055889,120]
[343139434,1732378275087,-491.02490471,0.00055889,120]
[343139435,1732378275097,-1536.02,0.00055889,120]
[343139436,1732378275107,-1536.02,0.00055889,120]
[343139437,1732378275117,-500.0,0.00055889,120]
[343139438,1732378275127,-500.0,0.00055889,120]
[343139439,1732378275136,-500.0,0.00055889,120]
[343139440,1732378275146,-500.0,0.00055889,120]
[343139441,1732378275156,-1936.36,0.00055889,120]
[343139442,1732378275166,-1936.36,0.00055889,120]
[343139443,1732378275176,-500.0,0.00055889,120]
[343139444,1732378275187,-500.0,0.00055889,120]
[343139445,1732378275197,-613.48386338,0.00055889,120]
[343139446,1732378275207,-551.3,0.00055889,120]
[343139447,1732378275217,-551.3,0.00055889,120]
[343139448,1732378275231,-500.0,0.00055889,120]
[343139449,1732378275241,-259.68,0.00055889,120]
[343139450,1732378275252,-501.77,0.00055889,120]
[343139451,1732378275262,-501.77,0.00055889,120]
[343139452,1732378275272,-591.82,0.00055889,120]
[343139453,1732378275282,-591.82,0.00055889,120]
[343139454,1732378275292,-500.0,0.00055889,120]
[343139455,1732378275302,-500.0,0.00055889,120]
[343139456,1732378275312,-326.34,0.00055889,120]
[343139457,1732378275323,-500.0,0.00055889,120]
[343139458,1732378275333,-500.0,0.00055889,120]
[343139459,1732378275343,-500.0,0.00055889,120]
[343139460,1732378275353,-500.0,0.00055889,120]
[343139461,1732378275364,-500.0,0.00055889,120]
[343139462,1732378275373,-475.5891669,0.00055889,120]
[343139463,1732378275384,-500.0,0.00055889,120]
[343139464,1732378275393,-500.0,0.00055889,120]
[343139465,1732378275403,-500.0,0.00055889,120]
[343139466,1732378275414,-500.0,0.00055889,120]
[343139467,1732378275424,-530.42,0.00055889,120]
[343139468,1732378275434,-530.42,0.00055889,120]
[343139469,1732378275445,-516.91,0.00055889,120]
[343139470,1732378275455,-516.91,0.00055889,120]
[343139471,1732378275469,-500.0,0.00055889,120]
[343139472,1732378275482,-537.51734246,0.00055889,120]
[343139473,1732378275494,-382.0014901,0.00055889,120]
[343139474,1732378275503,-500.0,0.00055889,120]
[343139475,1732378275513,-500.0,0.00055889,120]
[343139476,1732378275523,-551.89,0.00055889,120]
[343139477,1732378275536,-551.89,0.00055889,120]
[343139478,1732378275547,-846.7,0.00055889,120]
[343139479,1732378275556,-846.7,0.00055889,120]
[343139480,1732378275566,-500.0,0.00055889,120]
[343139481,1732378275575,-500.0,0.00055889,120]
[343139482,1732378275585,-500.0,0.00055889,120]
[343139483,1732378275595,-500.0,0.00055889,120]
[343139484,1732378275605,-500.0,0.00055889,120]
[343139485,1732378275615,-500.0,0.00055889,120]
[343139486,1732378275625,-150.0,0.00055889,30]
[343139487,1732378275636,-1114.45,0.00055889,120]
[343139488,1732378275645,-1114.45,0.00055889,120]
[343139489,1732378275655,-500.0,0.00055889,120]
[343139490,1732378275665,-500.0,0.00055889,120]
[343139491,1732378275674,-500.0,0.00055889,120]
[343139492,1732378275684,-500.0,0.00055889,120]
[343139493,1732378275693,-590.77,0.00055889,120]
[343139494,1732378275703,-590.77,0.00055889,120]
[343139495,1732378275713,-1595.58,0.00055889,54]
[343139496,1732378275726,-1595.58,0.00055889,54]
[343139497,1732378275737,-500.0,0.00055889,120]
[343139498,1732378275747,-500.0,0.00055889,120]
[343139499,1732378275757,-1016.45,0.00055889,120]
[343139500,1732378275767,-1016.45,0.00055889,120]
[343139501,1732378275778,-500.0,0.00055889,120]
[343139502,1732378275918,-2314.84,0.00055889,120]
[343139503,1732378275928,-500.0,0.00055889,120]
[343139504,1732378275939,-2314.84,0.00055889,120]
[343139505,1732378275949,-701.59,0.00055889,120]
[343139506,1732378275959,-701.59,0.00055889,120]
[343139507,1732378275969,-2193.07,0.00055889,120]
[343139508,1732378275983,-2193.07,0.00055889,120]
[343139509,1732378275993,-511.55,0.00055889,120]
[343139510,1732378276003,-511.55,0.00055889,120]
[343139511,1732378276013,-764.42,0.00055889,120]
[343139512,1732378276023,-764.42,0.00055889,120]
[343139513,1732378276033,-421.22098905,0.00055889,120]
[343139514,1732378276043,-500.0,0.00055889,7]
[343139515,1732378276053,-459.63125105,0.00055889,7]
[343139516,1732378276064,-570.44,0.00055889,120]
[343139517,1732378276077,-500.0,0.00055889,120]
[343139518,1732378276095,-570.44,0.00055889,120]
[343139519,1732378276106,-500.0,0.00055889,120]
[343139520,1732378276116,-500.0,0.00055889,120]
[343139521,1732378276127,-418.66126939,0.00055889,120]
[343139522,1732378276137,-573.47613519,0.00055889,120]
[343139523,1732378276147,-500.0,0.00055889,120]
[343139524,1732378276156,-500.0,0.00055889,120]
[343139525,1732378276166,-500.0,0.00055889,120]
[343139526,1732378276176,-209.19684388,0.00055889,120]
[343139527,1732378276186,-914.09,0.00055889,120]
[343139528,1732378276195,-914.09,0.00055889,120]
[343139529,1732378276205,-841.1,0.00055889,120]
[343139530,1732378276214,-500.0,0.00055889,120]
[343139531,1732378276227,-841.1,0.00055889,120]
[343139532,1732378276236,-500.0,0.00055889,120]
[343139533,1732378276245,-656.57,0.00055889,120]
[343139534,1732378276255,-656.57,0.00055889,120]
[343139535,1732378276264,-942.04,0.00055889,120]
[343139536,1732378276274,-942.04,0.00055889,120]
[343139537,1732378276283,-500.0,0.00055889,120]
[343139538,1732378276292,-500.0,0.00055889,120]
[343139539,1732378276301,-157.059439,0.00055889,120]
[343139540,1732378276311,-1430.69,0.00055889,120]
[343139541,1732378276322,-1430.69,0.00055889,120]
[343139542,1732378276332,-1840.41,0.00055889,120]
[343139543,1732378276342,-1840.41,0.00055889,120]
[343139544,1732378276352,-1064.14,0.00055889,120]
[343139545,1732378276362,-1225.24,0.00055889,120]
[343139546,1732378276372,-1225.24,0.00055889,120]
[343139547,1732378276382,-1064.14,0.00055889,120]
[343139548,1732378276392,-1060.26,0.00055889,120]
[343139549,1732378276402,-1060.26,0.00055889,120]
[343139550,1732378276413,-763.95,0.00055889,21]
[343139551,1732378276426,-763.95,0.00055889,21]
[343139552,1732378276439,-860.55,0.00055889,120]
[343139553,1732378276471,-860.55,0.00055889,120]
[343139554,1732378276482,-1000.0,0.00055889,120]
[343139555,1732378276492,-1000.0,0.00055889,120]
[343139556,1732378276502,-1000.0,0.00055889,120]
[343139557,1732378276512,-1000.0,0.00055889,120]
[343139558,1732378276523,-736.93,0.00055889,120]
[343139559,1732378276533,-736.93,0.00055889,120]
[343139560,1732378276545,-917.51,0.00055889,120]
[343139561,1732378276555,-917.51,0.00055889,120]
[343139562,1732378276565,-1770.31,0.00055889,120]
[343139563,1732378276575,-1770.31,0.00055889,120]
[343139564,1732378276585,-1552.18,0.00055889,120]
[343139565,1732378276595,-1552.18,0.00055889,120]
[343139566,1732378276605,-500.0,0.00055889,120]
[343139567,1732378276615,-500.0,0.00055889,120]
[343139568,1732378276626,-500.0,0.00055889,120]
[343139569,1732378276635,-500.0,0.00055889,120]
[343139570,1732378276645,-2074.23,0.00055889,120]
[343139571,1732378276655,-2074.23,0.00055889,120]
[343139572,1732378276664,-1131.1,0.00055889,120]
[343139573,1732378276674,-1131.1,0.00055889,120]
[343139574,1732378276683,-1317.44,0.00055889,120]
[343139575,1732378276692,-1317.44,0.00055889,120]
[343139576,1732378276702,-500.0,0.00055889,120]
[343139577,1732378276712,-500.0,0.00055889,120]
[343139578,1732378276725,-500.0,0.00055889,120]
[343139579,1732378276735,-500.0,0.00055889,120]
[343139580,1732378276746,-1632.04,0.00055889,120]
[343139581,1732378276757,-1632.04,0.00055889,120]
[343139582,1732378276767,-802.56,0.00055889,120]
[343139583,1732378276778,-802.56,0.00055889,120]
[343139584,1732378276788,-238.34227988,0.00055889,120]
[343139585,1732378276799,-500.0,0.00055889,120]
[343139586,1732378276809,-500.0,0.00055889,120]
[343139587,1732378276820,-500.0,0.00055889,120]
[343139588,1732378276830,-500.0,0.00055889,120]
[343139589,1732378276840,-356.02,0.00055889,120]
[343139590,1732378276850,-1391.84,0.00055889,120]
[343139591,1732378276861,-1391.84,0.00055889,120]
[343139592,1732378276871,-500.0,0.00055889,120]
[343139593,1732378276881,-500.0,0.00055889,120]
[343139594,1732378276892,-1478.23,0.00055889,120]
[343139595,1732378276902,-1478.23,0.00055889,120]
[343139596,1732378276912,-500.0,0.00055889,120]
[343139597,1732378276923,-500.0,0.00055889,120]
[343139598,1732378276933,-665.62,0.00055889,120]
[343139599,1732378276948,-665.62,0.00055889,120]
[343139600,1732378276965,-500.0,0.00055889,120]
[343139601,1732378276994,-500.0,0.00055889,120]
[343139602,1732378277004,-500.0,0.00055889,120]
[343139603,1732378277014,-500.0,0.00055889,120]
[343139604,1732378277024,-500.0,0.00055889,120]
[343139605,1732378277035,-500.0,0.00055889,120]
[343139606,1732378277045,-656.66,0.00055889,120]
[343139607,1732378277055,-500.0,0.00055889,120]
[343139608,1732378277064,-656.66,0.00055889,120]
[343139609,1732378277074,-500.0,0.00055889,120]
[343139610,1732378277084,-1784.65,0.00055889,120]
[343139611,1732378277094,-1784.65,0.00055889,120]
[343139612,1732378277104,-748.23,0.00055889,120]
[343139613,1732378277119,-748.23,0.00055889,120]
[343139614,1732378277137,-1562.08,0.00055889,120]
[343139615,1732378277148,-1562.08,0.00055889,120]
[343139616,1732378277158,-500.0,0.00055889,120]
[343139617,1732378277169,-500.0,0.00055889,120]
[343139618,1732378277178,-500.0,0.00055889,120]
[343139619,1732378277188,-500.0,0.00055889,120]
[343139620,1732378277198,-587.33,0.00055889,120]
[343139621,1732378277208,-587.33,0.00055889,120]
[343139622,1732378277218,-580.05,0.00055889,120]
[343139623,1732378277231,-1353.49,0.00055889,120]
[343139624,1732378277241,-1353.49,0.00055889,120]
[343139625,1732378277250,-580.05,0.00055889,120]
[343139626,1732378277260,-607.95834239,0.00055889,120]
[343139627,1732378277269,-500.0,0.00055889,120]
[343139628,1732378277279,-601.86,0.00055889,120]
[343139629,1732378277289,-601.86,0.00055889,120]
[343139630,1732378277299,-500.0,0.00055889,120]
[343139631,1732378277309,-500.0,0.00055889,120]
[343139632,1732378277319,-500.0,0.00055889,120]
[343139633,1732378277329,-500.0,0.00055889,120]
[343139634,1732378277339,-5109.23,0.00055889,120]
[343139635,1732378277349,-5109.23,0.00055889,120]
[343139636,1732378277358,-500.0,0.00055889,120]
[343139637,1732378277368,-500.0,0.00055889,120]
[343139638,1732378277377,-1401.7,0.00055889,120]
[343139639,1732378277388,-1401.7,0.00055889,120]
[343139640,1732378277398,-1590.61,0.00055889,120]
[343139641,1732378277408,-1590.61,0.00055889,120]
[343139642,1732378277418,-616.01,0.00055889,120]
[343139643,1732378277428,-616.01,0.00055889,120]
[343139644,1732378277438,-1329.48,0.00055889,120]
[343139645,1732378277448,-1329.48,0.00055889,120]
[343139646,1732378277459,-605.27,0.00055889,120]
[343139647,1732378277469,-1475.35,0.00055889,120]
[343139648,1732378277482,-605.27,0.00055889,120]
[343139649,1732378277491,-1475.35,0.00055889,120]
[343139650,1732378277500,-500.0,0.00055889,120]
[343139651,1732378277510,-500.0,0.00055889,120]
[343139652,1732378277520,-500.0,0.00055889,120]
[343139653,1732378277530,-500.0,0.00055889,120]
[343139654,1732378277541,-1744.25,0.00055889,30]
[343139655,1732378277553,-1744.25,0.00055889,30]
[343139656,1732378277562,-500.0,0.00055889,120]
[343139657,1732378277572,-500.0,0.00055889,120]
[343139658,1732378277582,-500.0,0.00055889,120]
[343139659,1732378277592,-500.0,0.00055889,120]
[343139660,1732378277601,-1205.72,0.00055889,120]
[343139661,1732378277610,-1205.72,0.00055889,120]
[343139662,1732378277619,-1266.57,0.00055889,120]
[343139663,1732378277630,-1266.57,0.00055889,120]
[343139664,1732378277639,-760.74,0.00055889,120]
[343139665,1732378277649,-760.74,0.00055889,120]
[343139666,1732378277659,-500.0,0.00055889,120]
[343139667,1732378277669,-500.0,0.00055889,120]
[343139668,1732378277679,-538.89,0.00055889,120]
[343139669,1732378277688,-538.89,0.00055889,120]
[343139670,1732378277698,-168.28916001,0.00055889,120]
[343139671,1732378277708,-320.31442265,0.0005589,120]
[343139672,1732378277717,-453.7,0.0005589,120]
[343139673,1732378277729,-538.03339311,0.0005589,120]
[343139674,1732378277739,-2033.86,0.0005589,120]
[343139675,1732378277749,-663.86531485,0.0005589,34]
[343139676,1732378277758,-500.0,0.0005589,120]
[343139677,1732378277767,-615.8,0.0005589,120]
[343139678,1732378277776,-1167.38,0.0005589,120]
[343139679,1732378277786,-500.0,0.0005589,120]
[343139680,1732378277796,-500.0,0.0005589,120]
[343139681,1732378277806,-500.0,0.0005589,120]
[343139682,1732378277815,-747.42,0.0005589,120]
[343139683,1732378277825,-1563.83,0.0005589,120]
[343139684,1732378277835,-1000.0,0.0005589,2]
[343139685,1732378277845,-1000.0,0.0005589,2]
[343139686,1732378277855,-1000.0,0.0005589,2]
[343139687,1732378277865,-1000.0,0.0005589,2]
[343139688,1732378277875,-1000.0,0.0005589,2]
[343139689,1732378277885,-1000.0,0.0005589,2]
[343139690,1732378277894,-1000.0,0.0005589,2]
[343139691,1732378277903,-1000.0,0.0005589,2]
[343139692,1732378277913,-1000.0,0.0005589,2]
[343139693,1732378277923,-1000.0,0.0005589,2]
[343139694,1732378277933,-1000.0,0.0005589,2]
[343139695,1732378277943,-1000.0,0.0005589,2]
[343139696,1732378277954,-1000.0,0.0005589,2]
[343139697,1732378277963,-1000.0,0.0005589,2]
[343139698,1732378277976,-1000.0,0.0005589,2]
[343139699,1732378277985,-1000.0,0.0005589,2]
[343139700,1732378277994,-1000.0,0.0005589,2]
[343139701,1732378278003,-1000.0,0.0005589,2]
[343139702,1732378278014,-1000.0,0.0005589,2]
[343139703,1732378278024,-1000.0,0.0005589,2]
[343139704,1732378278035,-1000.0,0.0005589,2]
[343139705,1732378278046,-1000.0,0.0005589,2]
[343139706,1732378278055,-1000.0,0.0005589,2]
[343139707,1732378278065,-1000.0,0.0005589,2]
[343139708,1732378278074,-736.35770275,0.0005589,2]
[343139709,1732378278084,-166.94503016,0.0005589,34]
[343139710,1732378278094,-168.28916001,0.0005589,120]
[343139711,1732378278103,-1985.41311089,0.0005589,15]
[343139712,1732378278113,-227.43881661,0.0005589,27]
[343139713,1732378278123,-738.93843944,0.0005589,15]
[343139714,1732378278133,-309.5618569,0.0005589,11]
[343139715,1732378278144,-310.75105553,0.0005589,2]
[343139716,1732378278154,-3183.73934724,0.0005589,2]
[343139717,1732378278163,-17832.74319278,0.0005589,2]
[343139718,1732378278172,-1599.55647231,0.0005589,2]
[343139719,1732378278182,-2413.40870077,0.0005589,30]
[343139720,1732378278192,-7260.28793118,0.0005589,120]
[343139721,1732378278202,-7260.28793118,0.0005589,120]
[343139722,1732378278211,-7260.28793118,0.0005589,120]
[343139723,1732378278223,-7260.28793118,0.0005589,120]
[343139724,1732378278233,-7260.28793118,0.0005589,120]
[343139725,1732378278243,-7260.28793118,0.0005589,120]
[343139726,1732378278253,-7260.28793118,0.0005589,120]
[343139727,1732378278263,-7260.28793118,0.0005589,120]
[343139728,1732378278272,-7260.28793118,0.0005589,120]
[343139729,1732378278281,-7260.28793118,0.0005589,120]
[343139730,1732378278291,-7260.28793118,0.0005589,120]
[343139731,1732378278300,-7260.28793118,0.0005589,120]
[343139732,1732378278310,-7260.28793118,0.0005589,120]
[343139733,1732378278319,-7260.28793118,0.0005589,120]
[343139734,1732378278329,-7260.28793118,0.0005589,120]
[343139735,1732378278339,-7260.28793118,0.0005589,120]
[343139736,1732378278348,-7260.28793118,0.0005589,120]
[343139737,1732378278358,-7260.28793118,0.0005589,120]
[343139738,1732378278367,-7260.28793118,0.0005589,120]
[343139739,1732378278377,-7260.28,0.0005589,120]
[343139740,1732378278387,-10890.43189677,0.0005589,120]
[343139741,1732378278397,-10890.43189677,0.0005589,120]
[343139742,1732378278406,-10890.43189677,0.0005589,120]
[343139743,1732378278416,-10890.43189677,0.0005589,120]
[343139744,1732378278426,-10890.43189677,0.0005589,120]
[343139745,1732378278436,-10890.43189677,0.0005589,120]
[343139746,1732378278449,-10890.43189677,0.0005589,120]
[343139747,1732378278459,-10890.43189677,0.0005589,120]
[343139748,1732378278469,-10890.43189677,0.0005589,120]
[343139749,1732378278482,-10890.43189677,0.0005589,120]
[343139750,1732378278493,-10890.43189677,0.0005589,120]
[343139751,1732378278503,-10890.43189677,0.0005589,120]
[343139752,1732378278513,-10890.43189677,0.0005589,120]
[343139753,1732378278524,-10890.43189677,0.0005589,120]
[343139754,1732378278534,-10890.43189677,0.0005589,120]
[343139755,1732378278544,-10890.43189677,0.0005589,120]
[343139756,1732378278554,-10890.43189677,0.0005589,120]
[343139757,1732378278563,-10890.43189677,0.0005589,120]
[343139758,1732378278574,-10890.43189677,0.0005589,120]
[343139759,1732378278584,-10890.43,0.0005589,120]
[343139760,1732378278593,-150.20878304,0.0005589,120]
[343139761,1732378278603,-150.20878304,0.0005589,120]
[343139762,1732378278613,-150.20878304,0.0005589,120]
[343139763,1732378278623,-150.20878304,0.0005589,120]
[343139764,1732378278633,-150.20878304,0.0005589,120]
[343139765,1732378278645,-150.20878304,0.0005589,120]
[343139766,1732378278656,-150.20878304,0.0005589,120]
[343139767,1732378278666,-150.2,0.0005589,120]
[343139768,1732378278677,-150.20878304,0.0005589,120]
[343139769,1732378278687,-150.20878304,0.0005589,120]
[343139770,1732378278698,-150.20878304,0.0005589,120]
[343139771,1732378278708,-150.20878304,0.0005589,120]
[343139772,1732378278725,-150.20878304,0.0005589,120]
[343139773,1732378278735,-150.20878304,0.0005589,120]
[343139774,1732378278746,-150.20878304,0.0005589,120]
[343139775,1732378278757,-150.20878304,0.0005589,120]
[343139776,1732378278767,-150.20878304,0.0005589,120]
[343139777,1732378278778,-150.20878304,0.0005589,120]
[343139778,1732378278788,-150.20878304,0.0005589,120]
[343139779,1732378278798,-150.2,0.0005589,120]
[343139780,1732378278809,-150.0,0.00055894,14]
[343139781,1732378278819,-1031.5012,0.000559,120]
[343139782,1732378278830,-486.0,0.000559,3]
[343139783,1732378278840,-902.6924,0.000559,120]
[343139784,1732378278851,-1000.0,0.000559,120]
[343139785,1732378278862,-1000.0,0.000559,120]
[343139786,1732378278872,-1000.0,0.000559,120]
[343139787,1732378278883,-1523.39,0.00055905,2]
[343139788,1732378278894,-150.0,0.00055906,30]
[343139789,1732378278905,-150.0,0.00055907,120]
[343139790,1732378278915,-150.0,0.00055909,14]
[343139791,1732378278925,-150.0,0.00055916,14]
[343139792,1732378278936,-150.0,0.00055917,14]
[343139793,1732378278946,-150.0,0.00055926,14]
[343139794,1732378278957,-150.0,0.00055928,14]
[343139795,1732378278967,-150.0,0.00055929,14]
[343139796,1732378278979,-150.0,0.00055932,14]
[343139797,1732378278990,-1500.0,0.00055933,30]
[343139798,1732378279000,-150.0,0.00055938,14]
[343139799,1732378279010,-150.0,0.00055938,30]
[343139800,1732378279020,-150.0,0.0005594,120]
[343139801,1732378279030,-150.0,0.00055945,30]
[343139802,1732378279041,-173.0,0.00055957,2]
[343139803,1732378279051,-1500.0,0.00055959,30]
[343139804,1732378279062,-1500.0,0.00055961,30]
[343139805,1732378279072,-9292.47334653,0.00055962,7]
[343139806,1732378279082,-1323.49,0.00055962,120]
[343139807,1732378279092,-1615.67,0.00055962,120]
[343139808,1732378279102,-1943.62,0.00055962,120]
[343139809,1732378279112,-893.44,0.00055962,120]
[343139810,1732378279123,-500.0,0.00055962,120]
[343139811,1732378279133,-500.0,0.00055962,120]
[343139812,1732378279144,-500.0,0.00055962,120]
[343139813,1732378279153,-500.0,0.00055962,120]
[343139814,1732378279164,-500.0,0.00055962,120]
[343139815,1732378279174,-1368.46,0.00055962,120]
[343139816,1732378279184,-500.0,0.00055962,120]
[343139817,1732378279194,-1523.32,0.00055962,120]
[343139818,1732378279205,-187.0,0.00055968,7]
[343139819,1732378279216,-192.54,0.00055969,7]
[343139820,1732378279229,-500.0,0.00055971,120]
[343139821,1732378279239,-500.0,0.00055971,120]
[343139822,1732378279248,-500.0,0.00055971,120]
[343139823,1732378279258,-500.0,0.00055971,120]
[343139824,1732378279268,-587.33,0.00055971,120]
[343139825,1732378279277,-1353.49,0.00055971,120]
[343139826,1732378279287,-601.86,0.00055971,120]
[343139827,1732378279297,-5109.23,0.00055971,120]
[343139828,1732378279306,-616.01,0.00055971,120]
[343139829,1732378279317,-1329.48,0.00055971,120]
[343139830,1732378279327,-1475.35,0.00055971,120]
[343139831,1732378279337,-500.0,0.00055971,120]
[343139832,1732378279348,-500.0,0.00055971,120]
[343139833,1732378279358,-1205.72,0.00055971,120]
[343139834,1732378279368,-1155.86,0.00055972,120]
[343139835,1732378279378,-521.35693161,0.00055972,120]
[343139836,1732378279388,-500.0,0.00055972,120]
[343139837,1732378279398,-520.83,0.00055972,120]
[343139838,1732378279408,-500.0,0.00055972,120]
[343139839,1732378279418,-292.89937195,0.00055973,120]
[343139840,1732378279428,-2959.0,0.00055973,120]
[343139841,1732378279586,-909.97,0.00055973,120]
[343139842,1732378279597,-825.46,0.00055973,120]
[343139843,1732378279606,-500.0,0.00055973,120]
[343139844,1732378279616,-1466.06,0.00055973,120]
[343139845,1732378279626,-1008.87,0.00055973,120]
[343139846,1732378279636,-500.0,0.00055973,120]
[343139847,1732378279645,-519.16,0.00055973,120]
[343139848,1732378279654,-520.29,0.00055973,120]
[343139849,1732378279664,-500.0,0.00055973,120]
[343139850,1732378279673,-1352.09,0.00055973,120]
[343139851,1732378279683,-1465.94,0.00055973,120]
[343139852,1732378279692,-1536.02,0.00055973,120]
[343139853,1732378279702,-500.0,0.00055973,120]
[343139854,1732378279712,-619.6446144,0.00055973,120]
[343139855,1732378279722,-1936.36,0.00055973,120]
[343139856,1732378279736,-500.0,0.00055973,120]
[343139857,1732378279746,-551.3,0.00055973,120]
[343139858,1732378279756,-501.77,0.00055973,120]
[343139859,1732378279766,-591.82,0.00055973,120]
[343139860,1732378279777,-500.0,0.00055973,120]
[343139861,1732378279786,-500.0,0.00055973,120]
[343139862,1732378279797,-421.3645629,0.00055973,120]
[343139863,1732378279807,-530.42,0.00055973,120]
[343139864,1732378279817,-516.91,0.00055973,120]
[343139865,1732378279828,-647.89810494,0.00055973,120]
[343139866,1732378279838,-551.89,0.00055973,120]
[343139867,1732378279848,-846.7,0.00055973,120]
[343139868,1732378279858,-500.0,0.00055973,120]
[343139869,1732378279868,-500.0,0.00055973,120]
[343139870,1732378279878,-500.0,0.00055973,120]
[343139871,1732378279888,-1114.45,0.00055973,120]
[343139872,1732378279898,-500.0,0.00055973,120]
[343139873,1732378279908,-500.0,0.00055973,120]
[343139874,1732378279917,-590.77,0.00055973,120]
[343139875,1732378279928,-1595.58,0.00055973,54]
[343139876,1732378279938,-500.0,0.00055973,120]
[343139877,1732378279948,-1016.45,0.00055973,120]
[343139878,1732378279957,-500.0,0.00055973,120]
[343139879,1732378279967,-2314.84,0.00055973,120]
[343139880,1732378279981,-701.59,0.00055973,120]
[343139881,1732378279991,-2193.07,0.00055973,120]
[343139882,1732378280000,-150.0,0.00055973,30]
[343139883,1732378280010,-511.55,0.00055973,120]
[343139884,1732378280019,-764.42,0.00055973,120]
[343139885,1732378280029,-570.44,0.00055973,120]
[343139886,1732378280038,-500.0,0.00055973,120]
[343139887,1732378280047,-500.0,0.00055973,120]